[Event "Titled Tuesday Blitz January 10 Early 2023"]
[White "Danielyan, Vahe"]
[Black "Howell, David W L"]
[WhiteFideId "13304828"]
[BlackFideId "410608"]
[WhiteElo "2346"]
[BlackElo "2677"]
[Result "0-1"]
[Round "03"]
[TimeControl "180+2"]
[Date "2023.01.10"]
[WhiteClock "0:00:01"]
[BlackClock "0:00:10"]

1. Nf3 {[%clk 0:02:56]}  c5 {[%clk 0:02:52]} 2. b3 {[%clk 0:02:53]}  d6 {[%clk 0:02:49]} 3. Bb2 {[%clk 0:02:54]}  e5 {[%clk 0:02:49]} 4. d3 {[%clk 0:02:41]}  Nc6 {[%clk 0:02:47]} 5. g3 {[%clk 0:02:41]}  g6 {[%clk 0:02:32]} 6. Bg2 {[%clk 0:02:41]}  Bg7 {[%clk 0:02:32]} 7. O-O {[%clk 0:02:41]}  Nge7 {[%clk 0:02:31]} 8. Nbd2 {[%clk 0:02:41]}  O-O {[%clk 0:02:30]} 9. e4 {[%clk 0:02:32]}  h6 {[%clk 0:02:25]} 10. Nc4 {[%clk 0:02:21]}  Be6 {[%clk 0:02:22]} 11. a4 {[%clk 0:02:10]}  Qd7 {[%clk 0:02:19]} 12. Re1 {[%clk 0:02:08]}  Rad8 {[%clk 0:02:18]} 13. Qd2 {[%clk 0:01:44]}  g5 {[%clk 0:02:15]} 14. Rad1 {[%clk 0:01:42]}  Ng6 {[%clk 0:02:12]} 15. Qc1 {[%clk 0:01:35]}  b6 {[%clk 0:01:48]} 16. Qa1 {[%clk 0:01:34]}  g4 {[%clk 0:01:39]} 17. Nfd2 {[%clk 0:01:33]}  Nd4 {[%clk 0:01:40]} 18. Qc1 {[%clk 0:01:15]}  d5 {[%clk 0:01:33]} 19. Ne3 {[%clk 0:01:10]}  Ne7 {[%clk 0:01:30]} 20. c3 {[%clk 0:01:09]}  Ndc6 {[%clk 0:01:28]} 21. exd5 {[%clk 0:01:04]}  Nxd5 {[%clk 0:01:29]} 22. Ndc4 {[%clk 0:01:03]}  f5 {[%clk 0:01:17]} 23. Nf1 {[%clk 0:00:17]}  Rfe8 {[%clk 0:01:02]} 24. Qc2 {[%clk 0:00:16]}  Bf7 {[%clk 0:01:02]} 25. Re2 {[%clk 0:00:15]}  h5 {[%clk 0:00:55]} 26. Rde1 {[%clk 0:00:15]}  f4 {[%clk 0:00:48]} 27. Be4 {[%clk 0:00:13]}  Re7 {[%clk 0:00:31]} 28. d4 {[%clk 0:00:12]}  f3 {[%clk 0:00:23]} 29. Bh7+ {[%clk 0:00:08]}  Kf8 {[%clk 0:00:20]} 30. Bf5 {[%clk 0:00:07]}  Qe8 {[%clk 0:00:15]} 31. Re4 {[%clk 0:00:04]}  exd4 {[%clk 0:00:12]} 32. Rxe7 {[%clk 0:00:04]}  Ncxe7 {[%clk 0:00:12]} 33. Be4 {[%clk 0:00:02]}  dxc3 {[%clk 0:00:12]} 34. Bc1 {[%clk 0:00:02]}  Qd7 {[%clk 0:00:12]} 35. Nfe3 {[%clk 0:00:02]}  Nxe3 {[%clk 0:00:12]} 36. Bxe3 {[%clk 0:00:02]}  Nd5 {[%clk 0:00:12]} 37. Bxd5 {[%clk 0:00:01]}  Qxd5 {[%clk 0:00:12]} 38. Qh7 {[%clk 0:00:01]}  Qd3 {[%clk 0:00:10]} 39. Bh6 {[%clk 0:00:01]}  Qxh7 {[%clk 0:00:10]} 0-1


[Site "https://www.chess.com"]

[Event "Titled Tuesday Blitz January 10 Early 2023"]
[White "Bagwe Gaurang"]
[Black "Kozak, Adam"]
[WhiteFideId "45039895"]
[BlackFideId "753246"]
[WhiteElo "2067"]
[BlackElo "2572"]
[Result "1-0"]
[Round "03"]
[TimeControl "180+2"]
[Date "2023.01.10"]
[WhiteClock "0:00:06"]
[BlackClock "0:00:01"]

1. e4 {[%clk 0:03:00]}  e5 {[%clk 0:01:54]} 2. Nf3 {[%clk 0:02:59]}  Nc6 {[%clk 0:01:55]} 3. Bb5 {[%clk 0:02:59]}  Nf6 {[%clk 0:01:20]} 4. O-O {[%clk 0:02:56]}  Nxe4 {[%clk 0:01:06]} 5. Re1 {[%clk 0:02:55]}  Nd6 {[%clk 0:01:06]} 6. Nxe5 {[%clk 0:02:50]}  Be7 {[%clk 0:01:05]} 7. Bf1 {[%clk 0:02:47]}  Nxe5 {[%clk 0:00:53]} 8. Rxe5 {[%clk 0:02:46]}  O-O {[%clk 0:00:54]} 9. d4 {[%clk 0:02:46]}  Bf6 {[%clk 0:00:40]} 10. Re1 {[%clk 0:02:45]}  Re8 {[%clk 0:00:41]} 11. c3 {[%clk 0:02:28]}  Rxe1 {[%clk 0:00:41]} 12. Qxe1 {[%clk 0:02:28]}  Ne8 {[%clk 0:00:41]} 13. Bf4 {[%clk 0:02:25]}  d5 {[%clk 0:00:41]} 14. Bd3 {[%clk 0:02:25]}  c6 {[%clk 0:00:41]} 15. Nd2 {[%clk 0:02:25]}  g6 {[%clk 0:00:42]} 16. Qe3 {[%clk 0:02:20]}  Ng7 {[%clk 0:00:42]} 17. Re1 {[%clk 0:02:13]}  Bf5 {[%clk 0:00:42]} 18. Bf1 {[%clk 0:02:06]}  Qb6 {[%clk 0:00:36]} 19. Nb3 {[%clk 0:01:39]}  Re8 {[%clk 0:00:35]} 20. Qd2 {[%clk 0:00:49]}  Qd8 {[%clk 0:00:34]} 21. Nc5 {[%clk 0:00:47]}  b6 {[%clk 0:00:30]} 22. Nd3 {[%clk 0:00:47]}  Rxe1 {[%clk 0:00:28]} 23. Qxe1 {[%clk 0:00:47]}  Ne6 {[%clk 0:00:27]} 24. Bg3 {[%clk 0:00:43]}  c5 {[%clk 0:00:27]} 25. dxc5 {[%clk 0:00:36]}  bxc5 {[%clk 0:00:28]} 26. h3 {[%clk 0:00:31]}  d4 {[%clk 0:00:28]} 27. cxd4 {[%clk 0:00:30]}  cxd4 {[%clk 0:00:27]} 28. Qc1 {[%clk 0:00:29]}  h5 {[%clk 0:00:27]} 29. b4 {[%clk 0:00:27]}  h4 {[%clk 0:00:27]} 30. Bh2 {[%clk 0:00:27]}  Kg7 {[%clk 0:00:23]} 31. Qc4 {[%clk 0:00:27]}  Ng5 {[%clk 0:00:23]} 32. Bc7 {[%clk 0:00:22]}  Qe7 {[%clk 0:00:22]} 33. Qc5 {[%clk 0:00:19]}  Qe6 {[%clk 0:00:18]} 34. Bf4 {[%clk 0:00:18]}  Ne4 {[%clk 0:00:18]} 35. Qc2 {[%clk 0:00:16]}  Nc3 {[%clk 0:00:18]} 36. Qd2 {[%clk 0:00:16]}  Qxa2 {[%clk 0:00:12]} 37. Nb2 {[%clk 0:00:07]}  Ne4 {[%clk 0:00:06]} 38. Qc1 {[%clk 0:00:06]}  Nc3 {[%clk 0:00:05]} 39. Bc4 {[%clk 0:00:06]}  Qa3 {[%clk 0:00:05]} 40. Nd3 {[%clk 0:00:05]}  Qxc1+ {[%clk 0:00:05]} 41. Nxc1 {[%clk 0:00:06]}  g5 {[%clk 0:00:03]} 42. Bb8 {[%clk 0:00:06]}  g4 {[%clk 0:00:02]} 43. hxg4 {[%clk 0:00:06]}  Bxg4 {[%clk 0:00:03]} 44. Bxa7 {[%clk 0:00:06]}  Bf5 {[%clk 0:00:03]} 45. Bc5 {[%clk 0:00:06]}  Kg6 {[%clk 0:00:03]} 46. b5 {[%clk 0:00:06]}  Be5 {[%clk 0:00:03]} 47. b6 {[%clk 0:00:06]}  Be4 {[%clk 0:00:03]} 48. Nd3 {[%clk 0:00:06]}  Bf6 {[%clk 0:00:03]} 49. f3 {[%clk 0:00:06]}  Bb7 {[%clk 0:00:02]} 50. Kf2 {[%clk 0:00:06]}  Kf5 {[%clk 0:00:03]} 51. Bb3 {[%clk 0:00:05]}  Ba6 {[%clk 0:00:03]} 52. Bxf7 {[%clk 0:00:04]}  Bxd3 {[%clk 0:00:02]} 53. b7 {[%clk 0:00:05]}  Be5 {[%clk 0:00:03]} 54. Ba7 {[%clk 0:00:05]}  Nb5 {[%clk 0:00:01]} 55. b8=Q {[%clk 0:00:05]}  Bxb8 {[%clk 0:00:02]} 56. Bxb8 {[%clk 0:00:06]}  Na3 {[%clk 0:00:01]} 57. Bg8 {[%clk 0:00:06]}  Bc4 {[%clk 0:00:01]} 58. Bxc4 {[%clk 0:00:06]} 1-0


[Site "https://www.chess.com"]

[Event "Titled Tuesday Blitz January 10 Early 2023"]
[White "Berezin, Viktor"]
[Black "Rozman, Levy"]
[WhiteFideId "14107872"]
[BlackFideId "2039877"]
[WhiteElo "2307"]
[BlackElo "2322"]
[Result "0-1"]
[Round "03"]
[TimeControl "180+2"]
[Date "2023.01.10"]
[WhiteClock "0:00:06"]
[BlackClock "0:00:08"]

1. d4 {[%clk 0:03:00]}  g6 {[%clk 0:02:57]} 2. Nf3 {[%clk 0:03:00]}  Bg7 {[%clk 0:02:58]} 3. g3 {[%clk 0:03:01]}  d6 {[%clk 0:02:58]} 4. Bg2 {[%clk 0:03:01]}  Nc6 {[%clk 0:02:58]} 5. O-O {[%clk 0:03:02]}  Bd7 {[%clk 0:02:58]} 6. Nc3 {[%clk 0:03:02]}  Qc8 {[%clk 0:02:59]} 7. Re1 {[%clk 0:03:00]}  Bh3 {[%clk 0:02:59]} 8. Bh1 {[%clk 0:03:01]}  h5 {[%clk 0:03:00]} 9. d5 {[%clk 0:02:51]}  Ne5 {[%clk 0:02:56]} 10. Nxe5 {[%clk 0:02:50]}  Bxe5 {[%clk 0:02:56]} 11. Be3 {[%clk 0:02:43]}  h4 {[%clk 0:02:54]} 12. Bd4 {[%clk 0:02:38]}  hxg3 {[%clk 0:02:52]} 13. fxg3 {[%clk 0:02:29]}  Nf6 {[%clk 0:02:36]} 14. Bxe5 {[%clk 0:02:29]}  dxe5 {[%clk 0:02:37]} 15. Ne4 {[%clk 0:02:20]}  Ng4 {[%clk 0:02:19]} 16. Qd3 {[%clk 0:01:59]}  Nxh2 {[%clk 0:01:28]} 17. Kxh2 {[%clk 0:01:38]}  Bf1+ {[%clk 0:01:27]} 18. Kg1 {[%clk 0:01:36]}  Rxh1+ {[%clk 0:01:20]} 19. Kf2 {[%clk 0:01:36]}  Rh2+ {[%clk 0:01:10]} 20. Ke3 {[%clk 0:01:32]}  Bg2 {[%clk 0:00:37]} 21. Kd2 {[%clk 0:01:32]}  Qf5 {[%clk 0:00:30]} 22. Nc5 {[%clk 0:01:04]}  Qg5+ {[%clk 0:00:17]} 23. Qe3 {[%clk 0:01:01]}  Qxe3+ {[%clk 0:00:16]} 24. Kxe3 {[%clk 0:01:02]}  Bxd5 {[%clk 0:00:16]} 25. Rad1 {[%clk 0:01:00]}  Bc6 {[%clk 0:00:15]} 26. Nb3 {[%clk 0:00:49]}  Rd8 {[%clk 0:00:15]} 27. Na5 {[%clk 0:00:49]}  Rd6 {[%clk 0:00:09]} 28. c4 {[%clk 0:00:44]}  Rg2 {[%clk 0:00:07]} 29. Nxc6 {[%clk 0:00:30]}  Rxc6 {[%clk 0:00:05]} 30. Kf3 {[%clk 0:00:29]}  Rh2 {[%clk 0:00:05]} 31. b3 {[%clk 0:00:29]}  f5 {[%clk 0:00:04]} 32. Rd5 {[%clk 0:00:26]}  Re6 {[%clk 0:00:04]} 33. Red1 {[%clk 0:00:23]}  Rd6 {[%clk 0:00:05]} 34. c5 {[%clk 0:00:21]}  e4+ {[%clk 0:00:05]} 35. Ke3 {[%clk 0:00:20]}  Rxd5 {[%clk 0:00:05]} 36. Rxd5 {[%clk 0:00:20]}  c6 {[%clk 0:00:05]} 37. Rd2 {[%clk 0:00:17]}  g5 {[%clk 0:00:05]} 38. Kd4 {[%clk 0:00:15]}  Rh6 {[%clk 0:00:04]} 39. Ke5 {[%clk 0:00:14]}  Rf6 {[%clk 0:00:05]} 40. e3 {[%clk 0:00:12]}  a6 {[%clk 0:00:05]} 41. b4 {[%clk 0:00:12]}  Kf7 {[%clk 0:00:05]} 42. a4 {[%clk 0:00:11]}  f4 {[%clk 0:00:04]} 43. gxf4 {[%clk 0:00:11]}  gxf4 {[%clk 0:00:04]} 44. exf4 {[%clk 0:00:11]}  e3 {[%clk 0:00:05]} 45. Re2 {[%clk 0:00:10]}  Re6+ {[%clk 0:00:05]} 46. Kf5 {[%clk 0:00:11]}  a5 {[%clk 0:00:04]} 47. bxa5 {[%clk 0:00:10]}  Rh6 {[%clk 0:00:04]} 48. Rxe3 {[%clk 0:00:08]}  Rh5+ {[%clk 0:00:04]} 49. Kg4 {[%clk 0:00:08]}  Rxc5 {[%clk 0:00:05]} 50. Rb3 {[%clk 0:00:08]}  Rxa5 {[%clk 0:00:04]} 51. Rxb7 {[%clk 0:00:09]}  Rxa4 {[%clk 0:00:05]} 52. Rc7 {[%clk 0:00:09]}  Rc4 {[%clk 0:00:05]} 53. Kf5 {[%clk 0:00:09]}  Rc5+ {[%clk 0:00:05]} 54. Ke4 {[%clk 0:00:08]}  Ke6 {[%clk 0:00:06]} 55. Rc8 {[%clk 0:00:06]}  Kd6 {[%clk 0:00:07]} 56. Rh8 {[%clk 0:00:05]}  Rc1 {[%clk 0:00:07]} 57. Rh6+ {[%clk 0:00:04]}  Kd7 {[%clk 0:00:06]} 58. Kf5 {[%clk 0:00:03]}  c5 {[%clk 0:00:06]} 59. Ke4 {[%clk 0:00:04]}  Rd1 {[%clk 0:00:06]} 60. Rh5 {[%clk 0:00:03]}  Rd4+ {[%clk 0:00:07]} 61. Ke3 {[%clk 0:00:03]}  Rc4 {[%clk 0:00:05]} 62. Re5 {[%clk 0:00:03]}  e6 {[%clk 0:00:05]} 63. f5 {[%clk 0:00:03]}  exf5 {[%clk 0:00:04]} 64. Rxf5 {[%clk 0:00:04]}  Kc6 {[%clk 0:00:04]} 65. Kd3 {[%clk 0:00:05]}  Rd4+ {[%clk 0:00:04]} 66. Kc3 {[%clk 0:00:05]}  Rd8 {[%clk 0:00:04]} 67. Rh5 {[%clk 0:00:05]}  Rd6 {[%clk 0:00:05]} 68. Rg5 {[%clk 0:00:05]}  Kb5 {[%clk 0:00:05]} 69. Rh5 {[%clk 0:00:05]}  Rg6 {[%clk 0:00:05]} 70. Rh3 {[%clk 0:00:05]}  Rg4 {[%clk 0:00:06]} 71. Rd3 {[%clk 0:00:05]}  Ra4 {[%clk 0:00:06]} 72. Kb3 {[%clk 0:00:05]}  c4+ {[%clk 0:00:07]} 73. Kc3 {[%clk 0:00:05]}  cxd3 {[%clk 0:00:08]} 74. Kxd3 {[%clk 0:00:06]}  Rc4 {[%clk 0:00:08]} 0-1


[Site "https://www.chess.com"]

[Event "Titled Tuesday Blitz January 10 Early 2023"]
[White "Harsha Bharathakoti"]
[Black "Khamdamova, Afruza"]
[WhiteFideId "5078776"]
[BlackFideId "14210444"]
[WhiteElo "2602"]
[BlackElo "2162"]
[Result "1-0"]
[Round "03"]
[TimeControl "180+2"]
[Date "2023.01.10"]
[WhiteClock "0:00:07"]
[BlackClock "0:00:20"]

1. e4 {[%clk 0:03:00]}  e5 {[%clk 0:03:00]} 2. Nc3 {[%clk 0:03:00]}  Nf6 {[%clk 0:03:00]} 3. Nf3 {[%clk 0:03:00]}  Nc6 {[%clk 0:03:00]} 4. Bb5 {[%clk 0:03:00]}  Bc5 {[%clk 0:03:00]} 5. Bxc6 {[%clk 0:02:59]}  dxc6 {[%clk 0:03:00]} 6. d3 {[%clk 0:02:59]}  Qe7 {[%clk 0:02:51]} 7. h3 {[%clk 0:02:58]}  h6 {[%clk 0:02:50]} 8. Qe2 {[%clk 0:02:58]}  O-O {[%clk 0:02:50]} 9. g4 {[%clk 0:02:55]}  b5 {[%clk 0:02:40]} 10. g5 {[%clk 0:02:53]}  hxg5 {[%clk 0:02:40]} 11. Bxg5 {[%clk 0:02:54]}  Re8 {[%clk 0:02:25]} 12. O-O-O {[%clk 0:02:42]}  a5 {[%clk 0:02:24]} 13. Rdg1 {[%clk 0:02:38]}  a4 {[%clk 0:02:21]} 14. Nh4 {[%clk 0:02:26]}  b4 {[%clk 0:02:18]} 15. Qf3 {[%clk 0:01:52]}  Kh8 {[%clk 0:01:52]} 16. Ne2 {[%clk 0:00:26]}  b3 {[%clk 0:01:38]} 17. a3 {[%clk 0:00:21]}  bxc2 {[%clk 0:01:14]} 18. Ng3 {[%clk 0:00:21]}  Bxa3 {[%clk 0:00:49]} 19. Bxf6 {[%clk 0:00:15]}  Bxb2+ {[%clk 0:00:49]} 20. Kxc2 {[%clk 0:00:10]}  Qc5+ {[%clk 0:00:45]} 21. Kd2 {[%clk 0:00:06]}  Qc3+ {[%clk 0:00:41]} 22. Ke2 {[%clk 0:00:06]}  Qc2+ {[%clk 0:00:27]} 23. Kf1 {[%clk 0:00:06]}  Ba6 {[%clk 0:00:20]} 24. Bxg7+ {[%clk 0:00:06]}  Kxg7 {[%clk 0:00:20]} 25. Ngf5+ {[%clk 0:00:06]}  Kf8 {[%clk 0:00:20]} 26. Rg8+ {[%clk 0:00:06]}  Kxg8 {[%clk 0:00:20]} 27. Qg4+ {[%clk 0:00:07]} 1-0


[Site "https://www.chess.com"]

[Event "Titled Tuesday Blitz January 10 Early 2023"]
[White "Krienke, Makaio"]
[Black "Rustemov, Alexander"]
[WhiteFideId "2038854"]
[BlackFideId "4119002"]
[WhiteElo "2115"]
[BlackElo "2525"]
[Result "0-1"]
[Round "03"]
[TimeControl "180+2"]
[Date "2023.01.10"]
[WhiteClock "0:01:11"]
[BlackClock "0:01:13"]

1. e4 {[%clk 0:03:00]}  e6 {[%clk 0:02:59]} 2. d4 {[%clk 0:03:00]}  d5 {[%clk 0:02:59]} 3. Nc3 {[%clk 0:03:01]}  dxe4 {[%clk 0:02:59]} 4. Nxe4 {[%clk 0:03:01]}  Bd7 {[%clk 0:03:00]} 5. Nf3 {[%clk 0:02:59]}  Bc6 {[%clk 0:03:00]} 6. Bd3 {[%clk 0:02:59]}  Nd7 {[%clk 0:03:01]} 7. O-O {[%clk 0:02:55]}  Ngf6 {[%clk 0:03:01]} 8. Bg5 {[%clk 0:02:54]}  Be7 {[%clk 0:03:00]} 9. Bxf6 {[%clk 0:02:54]}  Nxf6 {[%clk 0:02:59]} 10. Re1 {[%clk 0:02:54]}  O-O {[%clk 0:02:58]} 11. c3 {[%clk 0:02:53]}  b6 {[%clk 0:02:39]} 12. Ne5 {[%clk 0:02:52]}  Bb7 {[%clk 0:02:39]} 13. a4 {[%clk 0:02:50]}  a6 {[%clk 0:02:38]} 14. Qe2 {[%clk 0:02:48]}  Nxe4 {[%clk 0:02:22]} 15. Bxe4 {[%clk 0:02:48]}  Bxe4 {[%clk 0:02:22]} 16. Qxe4 {[%clk 0:02:48]}  Bd6 {[%clk 0:02:18]} 17. Nc6 {[%clk 0:02:41]}  Qd7 {[%clk 0:02:18]} 18. b4 {[%clk 0:02:41]}  Rae8 {[%clk 0:02:10]} 19. b5 {[%clk 0:02:32]}  axb5 {[%clk 0:02:04]} 20. axb5 {[%clk 0:02:33]}  g6 {[%clk 0:02:04]} 21. h4 {[%clk 0:02:28]}  Kg7 {[%clk 0:02:01]} 22. Ra7 {[%clk 0:02:25]}  h6 {[%clk 0:01:44]} 23. g3 {[%clk 0:02:20]}  f6 {[%clk 0:01:36]} 24. Kg2 {[%clk 0:02:17]}  Rf7 {[%clk 0:01:35]} 25. Re3 {[%clk 0:02:10]}  e5 {[%clk 0:01:34]} 26. dxe5 {[%clk 0:01:59]}  fxe5 {[%clk 0:01:30]} 27. h5 {[%clk 0:01:46]}  gxh5 {[%clk 0:01:28]} 28. Ra1 {[%clk 0:01:28]}  Ref8 {[%clk 0:01:27]} 29. f3 {[%clk 0:01:26]}  Rf5 {[%clk 0:01:25]} 30. Rd1 {[%clk 0:01:23]}  Qf7 {[%clk 0:01:25]} 31. Rd5 {[%clk 0:01:16]}  h4 {[%clk 0:01:19]} 32. Qxh4 {[%clk 0:01:14]}  Qxd5 {[%clk 0:01:14]} 33. Qg4+ {[%clk 0:01:11]}  Kh7 {[%clk 0:01:13]} 0-1


[Site "https://www.chess.com"]

[Event "Titled Tuesday Blitz January 10 Early 2023"]
[White "Bilych, Olexiy"]
[Black "Defend, Balint"]
[WhiteFideId "14156504"]
[BlackFideId "17004853"]
[WhiteElo "2441"]
[BlackElo "1673"]
[Result "1-0"]
[Round "03"]
[TimeControl "180+2"]
[Date "2023.01.10"]
[WhiteClock "0:00:22"]
[BlackClock "0:00:01"]

1. e4 {[%clk 0:03:00]}  c5 {[%clk 0:02:59]} 2. Nf3 {[%clk 0:03:00]}  d6 {[%clk 0:03:00]} 3. d4 {[%clk 0:02:58]}  cxd4 {[%clk 0:03:01]} 4. Nxd4 {[%clk 0:02:59]}  Nf6 {[%clk 0:03:01]} 5. Nc3 {[%clk 0:02:59]}  a6 {[%clk 0:03:02]} 6. f3 {[%clk 0:02:54]}  e5 {[%clk 0:03:02]} 7. Nb3 {[%clk 0:02:55]}  Be7 {[%clk 0:03:02]} 8. Be3 {[%clk 0:02:54]}  Be6 {[%clk 0:03:02]} 9. Qd2 {[%clk 0:02:51]}  O-O {[%clk 0:03:02]} 10. Nd5 {[%clk 0:02:51]}  Bxd5 {[%clk 0:02:53]} 11. exd5 {[%clk 0:02:52]}  Nbd7 {[%clk 0:02:54]} 12. Be2 {[%clk 0:02:51]}  Rc8 {[%clk 0:02:51]} 13. c4 {[%clk 0:02:30]}  b6 {[%clk 0:02:44]} 14. O-O {[%clk 0:02:19]}  a5 {[%clk 0:02:43]} 15. Rac1 {[%clk 0:02:18]}  Ne8 {[%clk 0:02:28]} 16. Na1 {[%clk 0:01:59]}  f5 {[%clk 0:02:22]} 17. Nc2 {[%clk 0:01:55]}  f4 {[%clk 0:01:48]} 18. Bf2 {[%clk 0:01:55]}  Bh4 {[%clk 0:01:48]} 19. g3 {[%clk 0:01:52]}  Bg5 {[%clk 0:01:41]} 20. g4 {[%clk 0:01:49]}  Bh4 {[%clk 0:01:42]} 21. Na3 {[%clk 0:01:47]}  Bxf2+ {[%clk 0:01:38]} 22. Rxf2 {[%clk 0:01:48]}  Nc5 {[%clk 0:01:33]} 23. Nb5 {[%clk 0:01:29]}  e4 {[%clk 0:01:20]} 24. Rff1 {[%clk 0:01:29]}  e3 {[%clk 0:01:18]} 25. Qd4 {[%clk 0:01:22]}  Nc7 {[%clk 0:01:18]} 26. Nc3 {[%clk 0:01:19]}  Qh4 {[%clk 0:01:04]} 27. Kh1 {[%clk 0:01:13]}  Rf6 {[%clk 0:01:00]} 28. Rg1 {[%clk 0:01:12]}  Re8 {[%clk 0:00:59]} 29. g5 {[%clk 0:01:07]}  Rf5 {[%clk 0:00:59]} 30. Rg4 {[%clk 0:01:07]}  Qh3 {[%clk 0:00:27]} 31. Rcg1 {[%clk 0:01:05]}  Ref8 {[%clk 0:00:25]} 32. b3 {[%clk 0:00:57]}  Qh5 {[%clk 0:00:20]} 33. Ne4 {[%clk 0:00:54]}  Nxe4 {[%clk 0:00:19]} 34. Qxe4 {[%clk 0:00:42]}  Re5 {[%clk 0:00:18]} 35. Qd4 {[%clk 0:00:42]}  Qg6 {[%clk 0:00:10]} 36. Bd3 {[%clk 0:00:35]}  Qe8 {[%clk 0:00:08]} 37. g6 {[%clk 0:00:31]}  h6 {[%clk 0:00:08]} 38. Be2 {[%clk 0:00:30]}  Qb8 {[%clk 0:00:07]} 39. Rxf4 {[%clk 0:00:29]}  Rxf4 {[%clk 0:00:04]} 40. Qxf4 {[%clk 0:00:30]}  Qf8 {[%clk 0:00:04]} 41. Qxf8+ {[%clk 0:00:24]}  Kxf8 {[%clk 0:00:04]} 42. f4 {[%clk 0:00:22]}  Re4 {[%clk 0:00:04]} 43. Rf1 {[%clk 0:00:21]}  Ne8 {[%clk 0:00:04]} 44. Kg2 {[%clk 0:00:22]}  Nf6 {[%clk 0:00:04]} 45. Kf3 {[%clk 0:00:22]}  Ke8 {[%clk 0:00:02]} 46. Re1 {[%clk 0:00:22]}  Re7 {[%clk 0:00:01]} 47. Bd3 {[%clk 0:00:22]}  Nd7 {[%clk 0:00:01]} 48. Rxe3 {[%clk 0:00:22]} 1-0


[Site "https://www.chess.com"]

[Event "Titled Tuesday Blitz January 10 Early 2023"]
[White "Mika, Tomasz"]
[Black "Bryakin, Mikhail"]
[WhiteFideId "1132970"]
[BlackFideId "4165314"]
[WhiteElo "2169"]
[BlackElo "2455"]
[Result "0-1"]
[Round "03"]
[TimeControl "180+2"]
[Date "2023.01.10"]
[WhiteClock "0:00:04"]
[BlackClock "0:00:11"]

1. Nf3 {[%clk 0:03:00]}  Nf6 {[%clk 0:02:58]} 2. c4 {[%clk 0:03:00]}  c5 {[%clk 0:02:55]} 3. Nc3 {[%clk 0:03:00]}  g6 {[%clk 0:02:55]} 4. g3 {[%clk 0:03:00]}  Bg7 {[%clk 0:02:55]} 5. Bg2 {[%clk 0:03:00]}  O-O {[%clk 0:02:56]} 6. d3 {[%clk 0:02:58]}  Nc6 {[%clk 0:02:55]} 7. Be3 {[%clk 0:02:58]}  b6 {[%clk 0:02:55]} 8. h3 {[%clk 0:02:54]}  Bb7 {[%clk 0:02:56]} 9. Qd2 {[%clk 0:02:54]}  Re8 {[%clk 0:02:55]} 10. Bh6 {[%clk 0:02:50]}  Bh8 {[%clk 0:02:55]} 11. g4 {[%clk 0:02:48]}  Nd4 {[%clk 0:02:52]} 12. O-O-O {[%clk 0:02:40]}  Nxf3 {[%clk 0:02:47]} 13. Bxf3 {[%clk 0:02:35]}  Bxf3 {[%clk 0:02:47]} 14. exf3 {[%clk 0:02:36]}  d5 {[%clk 0:02:39]} 15. Kb1 {[%clk 0:02:34]}  e6 {[%clk 0:02:25]} 16. h4 {[%clk 0:02:31]}  dxc4 {[%clk 0:02:15]} 17. dxc4 {[%clk 0:02:30]}  Qxd2 {[%clk 0:02:15]} 18. Rxd2 {[%clk 0:02:31]}  Bg7 {[%clk 0:02:06]} 19. Be3 {[%clk 0:02:22]}  h5 {[%clk 0:01:28]} 20. g5 {[%clk 0:02:14]}  Nh7 {[%clk 0:01:19]} 21. Ne4 {[%clk 0:02:09]}  Nf8 {[%clk 0:01:02]} 22. Rhd1 {[%clk 0:02:08]}  Be5 {[%clk 0:01:00]} 23. f4 {[%clk 0:01:59]}  Bg7 {[%clk 0:01:00]} 24. Rd6 {[%clk 0:01:38]}  Rac8 {[%clk 0:00:53]} 25. R6d3 {[%clk 0:01:25]}  Rc7 {[%clk 0:00:41]} 26. Nd6 {[%clk 0:01:25]}  Ra8 {[%clk 0:00:28]} 27. Nb5 {[%clk 0:01:22]}  Rcc8 {[%clk 0:00:29]} 28. b3 {[%clk 0:01:16]}  a6 {[%clk 0:00:29]} 29. Nd6 {[%clk 0:01:15]}  Rc7 {[%clk 0:00:29]} 30. Kc2 {[%clk 0:01:14]}  Rd7 {[%clk 0:00:26]} 31. Ne4 {[%clk 0:01:13]}  Rad8 {[%clk 0:00:24]} 32. Rd6 {[%clk 0:01:08]}  Rxd6 {[%clk 0:00:23]} 33. Rxd6 {[%clk 0:01:08]}  Rxd6 {[%clk 0:00:22]} 34. Nxd6 {[%clk 0:01:09]}  Nd7 {[%clk 0:00:23]} 35. Kd3 {[%clk 0:00:59]}  Kf8 {[%clk 0:00:22]} 36. a4 {[%clk 0:00:52]}  a5 {[%clk 0:00:18]} 37. Ne4 {[%clk 0:00:45]}  Ke7 {[%clk 0:00:18]} 38. Nd2 {[%clk 0:00:45]}  Nb8 {[%clk 0:00:16]} 39. Nf3 {[%clk 0:00:41]}  Nc6 {[%clk 0:00:16]} 40. Bd2 {[%clk 0:00:41]}  Bd4 {[%clk 0:00:12]} 41. Ke2 {[%clk 0:00:34]}  Kd6 {[%clk 0:00:09]} 42. Be3 {[%clk 0:00:31]}  Bg7 {[%clk 0:00:07]} 43. Kd3 {[%clk 0:00:29]}  e5 {[%clk 0:00:06]} 44. Nd2 {[%clk 0:00:29]}  Ke6 {[%clk 0:00:05]} 45. Ke4 {[%clk 0:00:25]}  Nb4 {[%clk 0:00:03]} 46. Nf3 {[%clk 0:00:23]}  exf4 {[%clk 0:00:03]} 47. Bxf4 {[%clk 0:00:24]}  Nc6 {[%clk 0:00:03]} 48. Bc7 {[%clk 0:00:24]}  Bc3 {[%clk 0:00:03]} 49. Bxb6 {[%clk 0:00:22]}  Bb4 {[%clk 0:00:03]} 50. Bc7 {[%clk 0:00:15]}  Ne7 {[%clk 0:00:04]} 51. Ng1 {[%clk 0:00:10]}  Nf5 {[%clk 0:00:04]} 52. Bg3 {[%clk 0:00:10]}  Be1 {[%clk 0:00:03]} 53. Ne2 {[%clk 0:00:09]}  Bb4 {[%clk 0:00:02]} 54. Nf4+ {[%clk 0:00:09]}  Kd7 {[%clk 0:00:02]} 55. Nd5 {[%clk 0:00:09]}  Kc6 {[%clk 0:00:03]} 56. Ke5 {[%clk 0:00:05]}  Ba3 {[%clk 0:00:02]} 57. Kf6 {[%clk 0:00:05]}  Nd4 {[%clk 0:00:03]} 58. Kxf7 {[%clk 0:00:05]}  Nxb3 {[%clk 0:00:03]} 59. Kxg6 {[%clk 0:00:05]}  Nd2 {[%clk 0:00:04]} 60. Kf7 {[%clk 0:00:03]}  Nxc4 {[%clk 0:00:04]} 61. Ne7+ {[%clk 0:00:03]}  Kd7 {[%clk 0:00:04]} 62. g6 {[%clk 0:00:04]}  Nd6+ {[%clk 0:00:05]} 63. Kf8 {[%clk 0:00:03]}  Bb2 {[%clk 0:00:05]} 64. Ng8 {[%clk 0:00:02]}  Nf5 {[%clk 0:00:06]} 65. Nh6 {[%clk 0:00:02]}  Nxh6 {[%clk 0:00:06]} 66. g7 {[%clk 0:00:02]}  Bxg7+ {[%clk 0:00:06]} 67. Kxg7 {[%clk 0:00:03]}  Nf5+ {[%clk 0:00:06]} 68. Kg6 {[%clk 0:00:04]}  Nxg3 {[%clk 0:00:07]} 69. fxg3 {[%clk 0:00:03]}  c4 {[%clk 0:00:08]} 70. g4 {[%clk 0:00:03]}  hxg4 {[%clk 0:00:08]} 71. h5 {[%clk 0:00:03]}  g3 {[%clk 0:00:09]} 72. h6 {[%clk 0:00:03]}  g2 {[%clk 0:00:10]} 73. h7 {[%clk 0:00:04]}  g1=Q+ {[%clk 0:00:11]} 0-1


[Site "https://www.chess.com"]